[Event "*** SCC Grand Prix: Titled Tuesday Blitz"]
[Site "Chess.com"]
[Date "2020.07.21"]
[Round "2"]
[White "Lion-Al-Messi"]
[Black "jb2mix"]
[Result "0-1"]
[WhiteElo "2440"]
[BlackElo "2675"]
[TimeControl "180+1"]
[EndTime "10:18:45 PDT"]
[Termination "jb2mix won on time"]

1. e4 {[%clk 0:03:00.9]} 1... e5 {[%clk 0:02:59.6]} 2. Nf3 {[%clk 0:03:00.5]}
2... Nc6 {[%clk 0:03:00]} 3. Bb5 {[%clk 0:03:00.5]} 3... a6 {[%clk 0:02:59.7]}
4. Ba4 {[%clk 0:02:58.7]} 4... Nf6 {[%clk 0:02:59.2]} 5. O-O {[%clk 0:02:58.1]}
5... b5 {[%clk 0:02:59.6]} 6. Bb3 {[%clk 0:02:57]} 6... Bb7 {[%clk 0:03:00.5]}
7. d4 {[%clk 0:02:52.2]} 7... Nxd4 {[%clk 0:02:59.9]} 8. Bxf7+ {[%clk
0:02:47.2]} 8... Kxf7 {[%clk 0:03:00.8]} 9. Nxe5+ {[%clk 0:02:47]} 9... Kg8
{[%clk 0:03:01.7]} 10. Qxd4 {[%clk 0:02:46.8]} 10... d6 {[%clk 0:03:02.6]} 11.
Nf3 {[%clk 0:02:35]} 11... Nxe4 {[%clk 0:03:02.2]} 12. Nbd2 {[%clk 0:02:21.6]}
12... Qf6 {[%clk 0:03:00.9]} 13. Qd3 {[%clk 0:02:05.4]} 13... Nxd2 {[%clk
0:02:53.9]} 14. Bxd2 {[%clk 0:02:01.6]} 14... Bxf3 {[%clk 0:02:39]} 15. gxf3
{[%clk 0:02:01]} 15... Qg6+ {[%clk 0:02:38.4]} 16. Qxg6 {[%clk 0:02:00.4]} 16...
hxg6 {[%clk 0:02:39.3]} 17. Rfe1 {[%clk 0:01:58.6]} 17... Rh5 {[%clk 0:02:37.7]}
18. Re2 {[%clk 0:01:52.5]} 18... Rf5 {[%clk 0:02:37.8]} 19. Kg2 {[%clk
0:01:50.6]} 19... a5 {[%clk 0:02:32.8]} 20. Rae1 {[%clk 0:01:49.6]} 20... a4
{[%clk 0:02:33.1]} 21. Re8 {[%clk 0:01:35.1]} 21... Rxe8 {[%clk 0:02:18.2]} 22.
Rxe8 {[%clk 0:01:34.8]} 22... Rd5 {[%clk 0:02:09.3]} 23. Be3 {[%clk 0:01:28]}
23... Rd1 {[%clk 0:02:03.2]} 24. Rb8 {[%clk 0:01:22.4]} 24... c6 {[%clk
0:01:51.1]} 25. Rb6 {[%clk 0:01:21.8]} 25... Rb1 {[%clk 0:01:47.8]} 26. b3
{[%clk 0:01:21.6]} 26... a3 {[%clk 0:01:45.2]} 27. Rxc6 {[%clk 0:00:54.7]} 27...
Rb2 {[%clk 0:01:41.4]} 28. Bd4 {[%clk 0:00:53.1]} 28... Rxa2 {[%clk 0:01:40.5]}
29. Ra6 {[%clk 0:00:49.5]} 29... b4 {[%clk 0:01:24.6]} 30. c3 {[%clk 0:00:49.1]}
30... Rd2 {[%clk 0:00:47.5]} 31. Be3 {[%clk 0:00:45.4]} 31... bxc3 {[%clk
0:00:44.9]} 32. Rxa3 {[%clk 0:00:33.7]} 32... Rb2 {[%clk 0:00:43.3]} 33. b4
{[%clk 0:00:29.3]} 33... c2 {[%clk 0:00:37.9]} 34. Rc3 {[%clk 0:00:26.2]} 34...
d5 {[%clk 0:00:38.2]} 35. Rc8 {[%clk 0:00:25.7]} 35... Kf7 {[%clk 0:00:36.1]}
36. b5 {[%clk 0:00:22.3]} 36... Ba3 {[%clk 0:00:20.4]} 37. b6 {[%clk 0:00:11.3]}
37... Bd6 {[%clk 0:00:16]} 38. b7 {[%clk 0:00:10.2]} 38... Rxb7 {[%clk
0:00:15.7]} 39. Rxc2 {[%clk 0:00:10]} 39... Be5 {[%clk 0:00:16.2]} 40. Rc5
{[%clk 0:00:07.4]} 40... Rd7 {[%clk 0:00:14.9]} 41. f4 {[%clk 0:00:05.7]} 41...
Bf6 {[%clk 0:00:14.5]} 42. Kf3 {[%clk 0:00:05.5]} 42... d4 {[%clk 0:00:13.9]}
43. Bd2 {[%clk 0:00:05.7]} 43... d3 {[%clk 0:00:12.6]} 44. Rc4 {[%clk 0:00:05]}
44... Ke6 {[%clk 0:00:11.9]} 45. Ke3 {[%clk 0:00:05.1]} 45... Kf5 {[%clk
0:00:11.8]} 46. Rc5+ {[%clk 0:00:04.8]} 46... Kg4 {[%clk 0:00:11.5]} 47. f3+
{[%clk 0:00:05]} 47... Kh3 {[%clk 0:00:11.2]} 48. Rc8 {[%clk 0:00:02.9]} 48...
Kxh2 {[%clk 0:00:09]} 49. Kf2 {[%clk 0:00:03]} 49... Bd4+ {[%clk 0:00:07]} 50.
Kf1 {[%clk 0:00:02.8]} 50... Kg3 {[%clk 0:00:07.1]} 51. Re8 {[%clk 0:00:02.5]}
51... Kxf3 {[%clk 0:00:07.2]} 52. Rf8 {[%clk 0:00:01.1]} 52... Rb7 {[%clk
0:00:06.7]} 53. Re8 {[%clk 0:00:01.1]} 53... Rb1+ {[%clk 0:00:06.8]} 54. Be1
{[%clk 0:00:01.6]} 54... d2 {[%clk 0:00:06.7]} 0-1

[Event "*** SCC Grand Prix: Titled Tuesday Blitz"]
[Site "Chess.com"]
[Date "2020.07.21"]
[Round "2"]
[White "BillieKimbah"]
[Black "stanyga"]
[Result "1/2-1/2"]
[WhiteElo "2888"]
[BlackElo "2580"]
[TimeControl "180+1"]
[EndTime "10:18:50 PDT"]
[Termination "Game drawn - insufficient material"]

1. Nf3 {[%clk 0:03:00.9]} 1... Nf6 {[%clk 0:02:57.1]} 2. g3 {[%clk 0:03:01.1]}
2... g6 {[%clk 0:02:52.5]} 3. Bg2 {[%clk 0:03:01.5]} 3... Bg7 {[%clk 0:02:48.8]}
4. O-O {[%clk 0:03:01.5]} 4... O-O {[%clk 0:02:48.7]} 5. d4 {[%clk 0:03:01.5]}
5... d5 {[%clk 0:02:48.8]} 6. c3 {[%clk 0:03:01.3]} 6... a5 {[%clk 0:02:43.8]}
7. a4 {[%clk 0:02:58.7]} 7... c5 {[%clk 0:02:39.6]} 8. Na3 {[%clk 0:02:56.4]}
8... c4 {[%clk 0:02:36.2]} 9. Bf4 {[%clk 0:02:51.9]} 9... Nc6 {[%clk 0:02:36]}
10. Nb5 {[%clk 0:02:50.1]} 10... Bf5 {[%clk 0:02:34.6]} 11. h3 {[%clk
0:02:46.9]} 11... Be4 {[%clk 0:02:33.9]} 12. Bg5 {[%clk 0:02:23.2]} 12... Na7
{[%clk 0:02:28.8]} 13. Na3 {[%clk 0:02:22.6]} 13... b5 {[%clk 0:02:24.3]} 14.
axb5 {[%clk 0:02:15.9]} 14... Qb6 {[%clk 0:02:24.1]} 15. Ne5 {[%clk 0:02:13.3]}
15... Bxg2 {[%clk 0:02:22.2]} 16. Kxg2 {[%clk 0:02:13.4]} 16... Rfd8 {[%clk
0:01:55.4]} 17. Qa4 {[%clk 0:02:11]} 17... h6 {[%clk 0:01:44.9]} 18. Bf4 {[%clk
0:01:47.3]} 18... g5 {[%clk 0:01:44.2]} 19. Be3 {[%clk 0:01:45.4]} 19... Rdb8
{[%clk 0:01:43.1]} 20. Rfb1 {[%clk 0:01:22.6]} 20... Nxb5 {[%clk 0:01:39.3]} 21.
Nxb5 {[%clk 0:01:10.8]} 21... Qxb5 {[%clk 0:01:38.1]} 22. Nc6 {[%clk 0:01:10.6]}
22... Qxa4 {[%clk 0:01:25]} 23. Rxa4 {[%clk 0:01:11.5]} 23... Rb7 {[%clk
0:01:24.5]} 24. Rba1 {[%clk 0:00:53.7]} 24... e6 {[%clk 0:01:09.1]} 25. Bc1
{[%clk 0:00:51]} 25... Rb6 {[%clk 0:00:56.5]} 26. Rxa5 {[%clk 0:00:34]} 26...
Rxa5 {[%clk 0:00:54.9]} 27. Nxa5 {[%clk 0:00:34.9]} 27... Ne4 {[%clk 0:00:52.5]}
28. f3 {[%clk 0:00:32]} 28... Nd6 {[%clk 0:00:51.6]} 29. Ra3 {[%clk 0:00:29.3]}
29... Kf8 {[%clk 0:00:47.3]} 30. Kf1 {[%clk 0:00:27.8]} 30... Ke7 {[%clk
0:00:46.8]} 31. Ke1 {[%clk 0:00:25.2]} 31... Kd7 {[%clk 0:00:46.9]} 32. Kd1
{[%clk 0:00:24.8]} 32... Kc7 {[%clk 0:00:45.6]} 33. Kc2 {[%clk 0:00:25.1]} 33...
Nb5 {[%clk 0:00:37]} 34. Ra1 {[%clk 0:00:24.4]} 34... e5 {[%clk 0:00:27.1]} 35.
dxe5 {[%clk 0:00:21.9]} 35... Bxe5 {[%clk 0:00:27]} 36. Be3 {[%clk 0:00:21.6]}
36... Ra6 {[%clk 0:00:23.6]} 37. f4 {[%clk 0:00:21.1]} 37... gxf4 {[%clk
0:00:19.5]} 38. gxf4 {[%clk 0:00:22]} 38... Bf6 {[%clk 0:00:18]} 39. Bc5 {[%clk
0:00:21.6]} 39... d4 {[%clk 0:00:15.8]} 40. Bb4 {[%clk 0:00:19.8]} 40... dxc3
{[%clk 0:00:14.5]} 41. bxc3 {[%clk 0:00:20.7]} 41... Re6 {[%clk 0:00:13]} 42.
Nxc4 {[%clk 0:00:20.5]} 42... Rxe2+ {[%clk 0:00:12.3]} 43. Kb3 {[%clk
0:00:20.4]} 43... Rh2 {[%clk 0:00:12.2]} 44. Ra6 {[%clk 0:00:18.3]} 44... Bxc3
{[%clk 0:00:11.2]} 45. Bxc3 {[%clk 0:00:13.6]} 45... Rxh3 {[%clk 0:00:11.1]} 46.
Rf6 {[%clk 0:00:06.8]} 46... Nxc3 {[%clk 0:00:10.3]} 47. Rxf7+ {[%clk
0:00:07.1]} 47... Kc6 {[%clk 0:00:10.3]} 48. Rf6+ {[%clk 0:00:07]} 48... Kd5
{[%clk 0:00:10.7]} 49. Rd6+ {[%clk 0:00:07.1]} 49... Ke4 {[%clk 0:00:10.5]} 50.
Rc6 {[%clk 0:00:02.9]} 50... Nb5+ {[%clk 0:00:09.9]} 51. Kb4 {[%clk 0:00:03]}
51... Rb3+ {[%clk 0:00:09.3]} 52. Kxb3 {[%clk 0:00:01.8]} 52... Nd4+ {[%clk
0:00:09.2]} 53. Kc3 {[%clk 0:00:02.4]} 53... Nxc6 {[%clk 0:00:09.5]} 54. Kd2
{[%clk 0:00:03.2]} 54... Kxf4 {[%clk 0:00:09.7]} 55. Ke2 {[%clk 0:00:03.8]}
55... Kg3 {[%clk 0:00:10.1]} 56. Kf1 {[%clk 0:00:03.9]} 56... h5 {[%clk
0:00:09.8]} 57. Nd6 {[%clk 0:00:04.2]} 57... Kf4 {[%clk 0:00:09]} 58. Kg2 {[%clk
0:00:03.2]} 58... Ne5 {[%clk 0:00:09.3]} 59. Kh3 {[%clk 0:00:03.6]} 59... Ng6
{[%clk 0:00:09.2]} 60. Nc4 {[%clk 0:00:03.5]} 60... h4 {[%clk 0:00:09.3]} 61.
Nd2 {[%clk 0:00:03.7]} 61... Kg5 {[%clk 0:00:09.3]} 62. Nf3+ {[%clk 0:00:04]}
62... Kh5 {[%clk 0:00:09.8]} 63. Nxh4 {[%clk 0:00:04.9]} 1/2-1/2

[Event "*** SCC Grand Prix: Titled Tuesday Blitz"]
[Site "Chess.com"]
[Date "2020.07.21"]
[Round "2"]
[White "Witik"]
[Black "penguingm1"]
[Result "1-0"]
[WhiteElo "2603"]
[BlackElo "2924"]
[TimeControl "180+1"]
[EndTime "10:18:51 PDT"]
[Termination "Witik won by resignation"]

1. d4 {[%clk 0:03:00.9]} 1... d5 {[%clk 0:02:59.6]} 2. Bf4 {[%clk 0:02:59.2]}
2... Nf6 {[%clk 0:02:57.9]} 3. e3 {[%clk 0:02:59.6]} 3... e6 {[%clk 0:02:58.4]}
4. Nd2 {[%clk 0:02:59.6]} 4... Bd6 {[%clk 0:02:58.9]} 5. c3 {[%clk 0:02:59.3]}
5... c5 {[%clk 0:02:58.9]} 6. Bxd6 {[%clk 0:02:59]} 6... Qxd6 {[%clk 0:02:59.2]}
7. Bd3 {[%clk 0:02:58.8]} 7... O-O {[%clk 0:02:53.1]} 8. f4 {[%clk 0:02:56.4]}
8... b6 {[%clk 0:02:42.5]} 9. Ngf3 {[%clk 0:02:52.1]} 9... Ba6 {[%clk
0:02:42.5]} 10. Bxa6 {[%clk 0:02:50.5]} 10... Nxa6 {[%clk 0:02:43.4]} 11. O-O
{[%clk 0:02:50.6]} 11... Nc7 {[%clk 0:02:35.9]} 12. Ne5 {[%clk 0:02:49.9]} 12...
Nce8 {[%clk 0:02:30.9]} 13. Qf3 {[%clk 0:02:46.1]} 13... Qc7 {[%clk 0:02:27.9]}
14. f5 {[%clk 0:02:36]} 14... Nd6 {[%clk 0:02:15.9]} 15. fxe6 {[%clk 0:02:35.9]}
15... fxe6 {[%clk 0:02:16.8]} 16. Qh3 {[%clk 0:02:35.8]} 16... Rae8 {[%clk
0:02:05.7]} 17. Rf2 {[%clk 0:02:33.2]} 17... Nf7 {[%clk 0:02:03.5]} 18. Ng4
{[%clk 0:02:14.4]} 18... Ng5 {[%clk 0:01:56.4]} 19. Nxf6+ {[%clk 0:02:03.8]}
19... Rxf6 {[%clk 0:01:36.5]} 20. Qh5 {[%clk 0:01:52.3]} 20... Rg6 {[%clk
0:01:35.5]} 21. Raf1 {[%clk 0:01:24.2]} 21... Qb8 {[%clk 0:01:04.2]} 22. Nf3
{[%clk 0:01:09.8]} 22... Ne4 {[%clk 0:00:55.1]} 23. Ne5 {[%clk 0:01:07.6]} 23...
Nxf2 {[%clk 0:00:18.5]} 24. Rxf2 {[%clk 0:01:07.6]} 24... Rh6 {[%clk 0:00:16]}
25. Qf7+ {[%clk 0:01:07.2]} 25... Kh8 {[%clk 0:00:16.5]} 26. g4 {[%clk
0:00:29.1]} 26... Rh3 {[%clk 0:00:12]} 27. g5 {[%clk 0:00:21.9]} 27... Rxe3
{[%clk 0:00:10.8]} 28. g6 {[%clk 0:00:21.9]} 28... Rxe5 {[%clk 0:00:08.5]} 29.
dxe5 {[%clk 0:00:21]} 29... h6 {[%clk 0:00:07.6]} 30. Qd7 {[%clk 0:00:14.2]}
30... Qd8 {[%clk 0:00:07.7]} 31. Rf7 {[%clk 0:00:09.9]} 31... Qg5+ {[%clk
0:00:06.4]} 32. Kf2 {[%clk 0:00:08.6]} 32... Qd2+ {[%clk 0:00:05.1]} 33. Kg3
{[%clk 0:00:09]} 33... Qe3+ {[%clk 0:00:04.7]} 34. Kg2 {[%clk 0:00:08.8]} 34...
Qe4+ {[%clk 0:00:04.4]} 35. Kg1 {[%clk 0:00:08.5]} 35... Qb1+ {[%clk 0:00:04.4]}
36. Kf2 {[%clk 0:00:08.5]} 36... Qxb2+ {[%clk 0:00:04.8]} 37. Ke1 {[%clk
0:00:07.1]} 37... Qc1+ {[%clk 0:00:05.2]} 38. Ke2 {[%clk 0:00:07.5]} 38... Qc2+
{[%clk 0:00:05.7]} 39. Kf1 {[%clk 0:00:07.7]} 39... Qb1+ {[%clk 0:00:05.6]} 40.
Ke2 {[%clk 0:00:08.1]} 40... Qxa2+ {[%clk 0:00:05.9]} 41. Kd1 {[%clk 0:00:08.2]}
41... Qb1+ {[%clk 0:00:06.1]} 42. Kd2 {[%clk 0:00:08.6]} 42... Qb2+ {[%clk
0:00:05.9]} 43. Kd1 {[%clk 0:00:09.1]} 43... Qb3+ {[%clk 0:00:06]} 44. Kd2
{[%clk 0:00:08.9]} 44... Qa2+ {[%clk 0:00:06.5]} 45. Kc1 {[%clk 0:00:08.9]}
45... Qa1+ {[%clk 0:00:06]} 46. Kc2 {[%clk 0:00:09.2]} 46... Rg8 {[%clk
0:00:06.3]} 47. Qxe6 {[%clk 0:00:09]} 47... Qa2+ {[%clk 0:00:06.5]} 48. Kc1
{[%clk 0:00:09]} 48... Qxh2 {[%clk 0:00:06.2]} 49. Qe7 {[%clk 0:00:06.3]} 49...
Qg1+ {[%clk 0:00:05.9]} 50. Kc2 {[%clk 0:00:06.5]} 50... d4 {[%clk 0:00:05.9]}
51. cxd4 {[%clk 0:00:05.3]} 51... Qxg6+ {[%clk 0:00:05.9]} 52. Kc3 {[%clk
0:00:05]} 52... cxd4+ {[%clk 0:00:04.7]} 53. Kxd4 {[%clk 0:00:05.9]} 53... Qg4+
{[%clk 0:00:04.9]} 54. Kd5 {[%clk 0:00:06.3]} 54... Rc8 {[%clk 0:00:05.1]} 55.
Rf8+ {[%clk 0:00:05.5]} 55... Rxf8 {[%clk 0:00:05.1]} 56. Qxf8+ {[%clk
0:00:06.4]} 56... Kh7 {[%clk 0:00:05.7]} 57. e6 {[%clk 0:00:07.1]} 57... Qd1+
{[%clk 0:00:04.6]} 58. Kc6 {[%clk 0:00:07.3]} 58... Qb3 {[%clk 0:00:05]} 59. e7
{[%clk 0:00:07.2]} 59... Qa4+ {[%clk 0:00:05.3]} 60. Kc7 {[%clk 0:00:06.9]}
60... Qc4+ {[%clk 0:00:05.5]} 61. Kb8 {[%clk 0:00:07.3]} 61... Qe6 {[%clk
0:00:03.4]} 62. e8=Q {[%clk 0:00:07.8]} 62... Qxe8+ {[%clk 0:00:03.9]} 63. Qxe8
{[%clk 0:00:08.2]} 63... a5 {[%clk 0:00:04.6]} 64. Qe6 {[%clk 0:00:08.1]} 64...
h5 {[%clk 0:00:04.2]} 65. Qxb6 {[%clk 0:00:07.9]} 65... h4 {[%clk 0:00:04.7]}
66. Qxa5 {[%clk 0:00:07.4]} 66... Kh6 {[%clk 0:00:05.6]} 67. Qf5 {[%clk
0:00:07.6]} 67... g5 {[%clk 0:00:05.7]} 68. Qg4 {[%clk 0:00:07.8]} 68... Kg6
{[%clk 0:00:05.9]} 69. Kc7 {[%clk 0:00:08.4]} 69... Kf6 {[%clk 0:00:06.8]} 1-0

[Event "*** SCC Grand Prix: Titled Tuesday Blitz"]
[Site "Chess.com"]
[Date "2020.07.21"]
[Round "2"]
[White "GM_dmitrij"]
[Black "joksijoksi"]
[Result "1-0"]
[WhiteElo "2927"]
[BlackElo "2342"]
[TimeControl "180+1"]
[EndTime "10:18:53 PDT"]
[Termination "GM_dmitrij won by resignation"]

1. c4 {[%clk 0:03:00.9]} 1... e5 {[%clk 0:02:56.2]} 2. Nc3 {[%clk 0:03:00.6]}
2... Nf6 {[%clk 0:02:56.9]} 3. Nf3 {[%clk 0:03:00.5]} 3... e4 {[%clk 0:02:57.4]}
4. Ng5 {[%clk 0:02:57.7]} 4... b5 {[%clk 0:02:58]} 5. d3 {[%clk 0:02:37.7]} 5...
exd3 {[%clk 0:02:55.8]} 6. Qxd3 {[%clk 0:02:38.6]} 6... bxc4 {[%clk 0:02:51.2]}
7. Qxc4 {[%clk 0:02:39.5]} 7... d5 {[%clk 0:02:51.4]} 8. Qd3 {[%clk 0:02:25.2]}
8... h6 {[%clk 0:02:49.3]} 9. Nf3 {[%clk 0:02:24.2]} 9... Bd6 {[%clk 0:02:34.9]}
10. g3 {[%clk 0:02:24.5]} 10... O-O {[%clk 0:02:34.4]} 11. Bg2 {[%clk 0:02:25]}
11... c5 {[%clk 0:02:26.7]} 12. Nxd5 {[%clk 0:02:16.5]} 12... c4 {[%clk
0:02:09.6]} 13. Nxf6+ {[%clk 0:02:11.7]} 13... Qxf6 {[%clk 0:02:09.6]} 14. Qc3
{[%clk 0:02:12.2]} 14... Qxc3+ {[%clk 0:02:00.1]} 15. bxc3 {[%clk 0:02:13.1]}
15... Bb7 {[%clk 0:02:00.5]} 16. O-O {[%clk 0:02:10.2]} 16... Re8 {[%clk
0:02:00.8]} 17. Rb1 {[%clk 0:02:06.9]} 17... Bc6 {[%clk 0:01:57.7]} 18. Nd4
{[%clk 0:02:02.5]} 18... Bxg2 {[%clk 0:01:58.6]} 19. Kxg2 {[%clk 0:02:03.2]}
19... Be5 {[%clk 0:01:54.7]} 20. Bf4 {[%clk 0:01:57.8]} 20... Bxd4 {[%clk
0:01:53.7]} 21. cxd4 {[%clk 0:01:58.7]} 21... g5 {[%clk 0:01:49.2]} 22. Bxb8
{[%clk 0:01:53.2]} 22... Raxb8 {[%clk 0:01:48.6]} 23. e3 {[%clk 0:01:54.1]}
23... Rec8 {[%clk 0:01:44.6]} 24. Kf3 {[%clk 0:01:53.1]} 24... c3 {[%clk
0:01:41.6]} 25. Rxb8 {[%clk 0:01:47]} 25... Rxb8 {[%clk 0:01:42.5]} 26. Rc1
{[%clk 0:01:47]} 26... Rb2 {[%clk 0:01:40]} 27. Rxc3 {[%clk 0:01:45.3]} 27...
Rxa2 {[%clk 0:01:40.6]} 28. g4 {[%clk 0:01:45.3]} 28... Kg7 {[%clk 0:01:38.6]}
29. Rc6 {[%clk 0:01:35]} 29... a5 {[%clk 0:01:31.2]} 30. Ra6 {[%clk 0:01:34.4]}
30... a4 {[%clk 0:01:31.5]} 31. h3 {[%clk 0:01:24.2]} 31... a3 {[%clk
0:01:30.5]} 32. Ra4 {[%clk 0:01:14]} 32... Kf8 {[%clk 0:01:25.1]} 33. Ra7 {[%clk
0:01:13.4]} 33... Kg7 {[%clk 0:01:23.3]} 34. Ra6 {[%clk 0:01:13.5]} 34... Kh7
{[%clk 0:01:18.9]} 35. d5 {[%clk 0:01:07.4]} 35... Kg7 {[%clk 0:01:19]} 36. Ke4
{[%clk 0:00:53.2]} 36... Rxf2 {[%clk 0:01:17.7]} 37. Rxa3 {[%clk 0:00:53]} 37...
Kf8 {[%clk 0:01:02.6]} 38. Ke5 {[%clk 0:00:48]} 38... Ke7 {[%clk 0:00:52.9]} 39.
d6+ {[%clk 0:00:45.5]} 39... Ke8 {[%clk 0:00:47.3]} 40. e4 {[%clk 0:00:42.8]}
40... Kd7 {[%clk 0:00:40.8]} 41. Ra7+ {[%clk 0:00:39.6]} 41... Ke8 {[%clk
0:00:31.4]} 42. Re7+ {[%clk 0:00:22.2]} 42... Kd8 {[%clk 0:00:29.4]} 43. Kd5
{[%clk 0:00:21.7]} 43... Rd2+ {[%clk 0:00:27.7]} 44. Kc5 {[%clk 0:00:22.1]}
44... Rc2+ {[%clk 0:00:26.3]} 45. Kb4 {[%clk 0:00:21.8]} 45... Rf2 {[%clk
0:00:21.1]} 46. e5 {[%clk 0:00:20.2]} 46... Rf1 {[%clk 0:00:17.8]} 47. Ra7
{[%clk 0:00:16.7]} 47... Rb1+ {[%clk 0:00:15.2]} 48. Kc5 {[%clk 0:00:16.8]}
48... Rc1+ {[%clk 0:00:14.2]} 49. Kd4 {[%clk 0:00:17]} 49... Rd1+ {[%clk
0:00:12.8]} 50. Kc3 {[%clk 0:00:17]} 50... Re1 {[%clk 0:00:11.3]} 51. Re7 {[%clk
0:00:12.7]} 51... Re4 {[%clk 0:00:11.2]} 52. Kd3 {[%clk 0:00:12.5]} 52... Re1
{[%clk 0:00:10.9]} 53. Rxf7 {[%clk 0:00:08.7]} 53... Rxe5 {[%clk 0:00:10.1]} 54.
Rf6 {[%clk 0:00:09.6]} 54... Kd7 {[%clk 0:00:07.4]} 55. Rxh6 {[%clk 0:00:10.1]}
55... Ra5 {[%clk 0:00:05.1]} 56. Kd4 {[%clk 0:00:10.1]} 56... Rb5 {[%clk
0:00:03.4]} 57. Ke4 {[%clk 0:00:10.1]} 57... Ra5 {[%clk 0:00:01.9]} 58. Rf6
{[%clk 0:00:10.4]} 58... Rb5 {[%clk 0:00:01.8]} 59. Rf5 {[%clk 0:00:10.9]} 59...
Rb3 {[%clk 0:00:02.5]} 60. Rxg5 {[%clk 0:00:10.6]} 60... Rxh3 {[%clk 0:00:03.1]}
61. Rd5 {[%clk 0:00:10.6]} 61... Rg3 {[%clk 0:00:02.5]} 62. Kf4 {[%clk
0:00:10.9]} 62... Rg1 {[%clk 0:00:03]} 63. g5 {[%clk 0:00:11.3]} 63... Rf1+
{[%clk 0:00:03.6]} 64. Kg4 {[%clk 0:00:11.4]} 64... Rf8 {[%clk 0:00:03.6]} 65.
g6 {[%clk 0:00:10.6]} 65... Ke6 {[%clk 0:00:03.7]} 66. Rd2 {[%clk 0:00:10.2]}
66... Kf6 {[%clk 0:00:03.5]} 67. Rf2+ {[%clk 0:00:10]} 1-0

[Event "*** SCC Grand Prix: Titled Tuesday Blitz"]
[Site "Chess.com"]
[Date "2020.07.21"]
[Round "2"]
[White "viktorskliarov"]
[Black "The_Machine04"]
[Result "1/2-1/2"]
[WhiteElo "2594"]
[BlackElo "2295"]
[TimeControl "180+1"]
[EndTime "10:18:53 PDT"]
[Termination "Game drawn by repetition"]

1. e4 {[%clk 0:03:00.9]} 1... d6 {[%clk 0:03:00]} 2. d4 {[%clk 0:03:00.2]} 2...
Nf6 {[%clk 0:02:59.8]} 3. Nc3 {[%clk 0:02:59.7]} 3... e5 {[%clk 0:02:59.8]} 4.
Nge2 {[%clk 0:02:58.8]} 4... Nc6 {[%clk 0:02:59.5]} 5. d5 {[%clk 0:02:57.6]}
5... Ne7 {[%clk 0:02:59]} 6. f3 {[%clk 0:02:57.3]} 6... g6 {[%clk 0:02:50.2]} 7.
Be3 {[%clk 0:02:55]} 7... Bg7 {[%clk 0:02:46.9]} 8. Qd2 {[%clk 0:02:55.1]} 8...
c6 {[%clk 0:02:44.1]} 9. O-O-O {[%clk 0:02:47.5]} 9... cxd5 {[%clk 0:02:44]} 10.
exd5 {[%clk 0:02:46.8]} 10... a6 {[%clk 0:02:10.9]} 11. Bh6 {[%clk 0:02:24.6]}
11... O-O {[%clk 0:02:06.7]} 12. h4 {[%clk 0:02:19.1]} 12... Bxh6 {[%clk
0:01:10.2]} 13. Qxh6 {[%clk 0:02:17.7]} 13... Nf5 {[%clk 0:01:10.8]} 14. Qd2
{[%clk 0:02:16.2]} 14... h5 {[%clk 0:01:06.2]} 15. Ne4 {[%clk 0:01:40.7]} 15...
Nxe4 {[%clk 0:00:52.3]} 16. fxe4 {[%clk 0:01:39.9]} 16... Ng7 {[%clk 0:00:50.9]}
17. Ng3 {[%clk 0:01:19.9]} 17... Bg4 {[%clk 0:00:47.8]} 18. Be2 {[%clk 0:01:18]}
18... Qd7 {[%clk 0:00:47.7]} 19. Rhf1 {[%clk 0:01:09.6]} 19... b5 {[%clk
0:00:20]} 20. Rf6 {[%clk 0:01:03.1]} 20... Ne8 {[%clk 0:00:19.2]} 21. Rf2 {[%clk
0:00:50]} 21... Kg7 {[%clk 0:00:18.1]} 22. Rdf1 {[%clk 0:00:45.6]} 22... Bxe2
{[%clk 0:00:13.7]} 23. Qxe2 {[%clk 0:00:38]} 23... f6 {[%clk 0:00:09.6]} 24.
Nf5+ {[%clk 0:00:21.3]} 24... gxf5 {[%clk 0:00:09]} 25. Rxf5 {[%clk 0:00:21.8]}
25... Qf7 {[%clk 0:00:07.1]} 26. Rxh5 {[%clk 0:00:17.9]} 26... Qg6 {[%clk
0:00:06]} 27. g4 {[%clk 0:00:16.8]} 27... Rh8 {[%clk 0:00:04.1]} 28. Rhf5 {[%clk
0:00:11.3]} 28... Rxh4 {[%clk 0:00:02.8]} 29. g5 {[%clk 0:00:11.8]} 29... fxg5
{[%clk 0:00:01.7]} 30. Rf7+ {[%clk 0:00:11.4]} 30... Qxf7 {[%clk 0:00:02]} 31.
Rxf7+ {[%clk 0:00:11.9]} 31... Kxf7 {[%clk 0:00:02.9]} 32. Qf2+ {[%clk
0:00:11.6]} 32... Rf4 {[%clk 0:00:03.5]} 33. Qb6 {[%clk 0:00:10.9]} 33... Rc8
{[%clk 0:00:02.6]} 34. a4 {[%clk 0:00:10.9]} 34... bxa4 {[%clk 0:00:02.1]} 35.
Qb7+ {[%clk 0:00:11]} 35... Rc7 {[%clk 0:00:02.6]} 36. Qxa6 {[%clk 0:00:11.4]}
36... Rf2 {[%clk 0:00:02.5]} 37. c4 {[%clk 0:00:11]} 37... a3 {[%clk 0:00:02.4]}
38. bxa3 {[%clk 0:00:10.1]} 38... Rf1+ {[%clk 0:00:02.9]} 39. Kc2 {[%clk
0:00:09.9]} 39... Rf2+ {[%clk 0:00:03.3]} 40. Kc3 {[%clk 0:00:10.2]} 40... g4
{[%clk 0:00:03.9]} 41. Qb6 {[%clk 0:00:08.7]} 41... g3 {[%clk 0:00:04]} 42. Qe3
{[%clk 0:00:08.1]} 42... Rg2 {[%clk 0:00:03]} 43. Qf3+ {[%clk 0:00:08.2]} 43...
Nf6 {[%clk 0:00:03.5]} 44. Qxg2 {[%clk 0:00:09.1]} 44... Ra7 {[%clk 0:00:03.2]}
45. Kb3 {[%clk 0:00:07.9]} 45... Rb7+ {[%clk 0:00:02.8]} 46. Ka2 {[%clk
0:00:07.8]} 46... Rc7 {[%clk 0:00:03]} 47. Qxg3 {[%clk 0:00:07.7]} 47... Rxc4
{[%clk 0:00:03.3]} 48. Qb3 {[%clk 0:00:06.3]} 48... Rxe4 {[%clk 0:00:03.2]} 49.
a4 {[%clk 0:00:06.7]} 49... Rd4 {[%clk 0:00:02.6]} 50. a5 {[%clk 0:00:06.1]}
50... Nxd5 {[%clk 0:00:02.9]} 51. Qb7+ {[%clk 0:00:05.8]} 51... Ke6 {[%clk
0:00:02.8]} 52. a6 {[%clk 0:00:05.9]} 52... Nb4+ {[%clk 0:00:02.3]} 53. Kb3
{[%clk 0:00:06]} 53... Nxa6 {[%clk 0:00:02.6]} 54. Qxa6 {[%clk 0:00:06.6]} 54...
Kd5 {[%clk 0:00:03.1]} 55. Qb7+ {[%clk 0:00:05.9]} 55... Ke6 {[%clk 0:00:03.5]}
56. Kc3 {[%clk 0:00:06.2]} 56... Kf5 {[%clk 0:00:03.2]} 57. Qf7+ {[%clk
0:00:05.5]} 57... Ke4 {[%clk 0:00:03.1]} 58. Qf2 {[%clk 0:00:04.9]} 58... Kd5
{[%clk 0:00:02.9]} 59. Qf3+ {[%clk 0:00:05.1]} 59... Ke6 {[%clk 0:00:02.9]} 60.
Qh3+ {[%clk 0:00:04.6]} 60... Kd5 {[%clk 0:00:03.5]} 61. Qf3+ {[%clk 0:00:04.6]}
61... Ke6 {[%clk 0:00:03.6]} 62. Qh3+ {[%clk 0:00:04.5]} 62... Kd5 {[%clk
0:00:04]} 63. Qf3+ {[%clk 0:00:04.5]} 1/2-1/2